fUSD/lending_fUSD_20250110
["ID","MTS","AMOUNT","RATE_DAILY","PERIOD"]
[348395043,1736503845983,-500.0,9.998e-05,2]
[348395044,1736503845992,-500.0,9.998e-05,2]
[348395045,1736503846001,-500.0,9.998e-05,2]
[348395046,1736503846010,-500.0,9.998e-05,2]
[348395047,1736503846019,-500.0,9.998e-05,2]
[348395048,1736503846029,-500.30230929,9.998e-05,2]
[348395049,1736503846041,-500.0,9.998e-05,2]
[348395050,1736503846052,-501.37050023,9.998e-05,2]
[348395051,1736503846061,-582.06,9.998e-05,2]
[348395052,1736503846070,-501.55029817,9.998e-05,2]
[348395053,1736503846081,-500.0,9.998e-05,2]
[348395054,1736503846092,-501.02397407,9.998e-05,2]
[348395055,1736503846103,-586.43039483,9.998e-05,2]
[348395057,1736503846113,-501.73126271,9.998e-05,2]
[348395058,1736503846123,-500.0,9.998e-05,2]
[348395059,1736503846133,-678.89,9.998e-05,2]
[348395060,1736503846143,-500.0,9.998e-05,2]
[348395061,1736503846153,-502.79755861,9.998e-05,2]
[348395062,1736503846162,-500.0,9.998e-05,2]
[348395063,1736503846171,-634.08,9.998e-05,2]
[348395064,1736503846181,-501.27757862,9.998e-05,2]
[348395065,1736503846192,-500.0,9.998e-05,2]
[348395066,1736503846201,-500.0,9.998e-05,2]
[348395067,1736503846210,-500.0,9.998e-05,2]
[348395068,1736503846219,-501.65296892,9.998e-05,2]
[348395069,1736503846229,-500.0,9.998e-05,2]
[348395070,1736503846238,-500.62304385,9.998e-05,2]
[348395071,1736503846247,-502.37551078,9.998e-05,2]
[348395072,1736503846256,-491.71093366,9.998e-05,2]
[348395073,1736503846265,-500.0,9.998e-05,2]
[348395074,1736503846274,-500.0,9.998e-05,2]
[348395075,1736503846283,-503.23115311,9.998e-05,2]
[348395076,1736503846292,-500.0,9.998e-05,2]
[348395077,1736503846301,-525.11795192,9.998e-05,2]
[348395078,1736503846310,-500.0,9.998e-05,2]
[348395079,1736503846319,-500.0,9.998e-05,2]
[348395080,1736503846328,-500.0,9.998e-05,2]
[348395081,1736503846337,-501.97158406,9.998e-05,2]
[348395082,1736503846345,-282.14506611,9.998e-05,2]
[348395083,1736503846680,-223.32065889,9.998e-05,2]
[348395084,1736503846694,-500.0,9.998e-05,2]
[348395085,1736503846704,-500.0,9.998e-05,2]
[348395086,1736503846716,-515.46245025,9.998e-05,2]
[348395087,1736503846726,-500.0,9.998e-05,2]
[348395088,1736503846736,-415.1775746,9.998e-05,2]
[348395089,1736503846746,-500.0,9.998e-05,2]
[348395090,1736503846757,-501.30042216,9.998e-05,2]
[348395091,1736503846768,-618.45,9.998e-05,2]
[348395092,1736503846778,-502.28427054,9.998e-05,2]
[348395093,1736503846789,-500.0,9.998e-05,2]
[348395094,1736503846798,-5736.16495815,9.998e-05,2]
[348395095,1736503846809,-142.36504185,9.998e-05,2]
[348395096,1736503846818,-787.52,9.998e-05,2]
[348395097,1736503846827,-2496.96,9.998e-05,2]
[348395098,1736503846836,-405.25678044,9.998e-05,2]
[348395099,1736503846847,-94.74321956,9.998e-05,2]
[348395100,1736503846856,-503.1370673,9.998e-05,2]
[348395101,1736503846865,-501.48334771,9.998e-05,2]
[348395102,1736503846874,-501.88436889,9.998e-05,2]
[348395103,1736503846882,-554.04611203,9.998e-05,2]
[348395104,1736503846891,-580.53133709,9.998e-05,2]
[348395105,1736503846900,-500.0,9.998e-05,2]
[348395106,1736503846909,-500.0,9.998e-05,2]
[348395107,1736503846918,-500.0,9.998e-05,2]
[348395108,1736503846927,-527.44925635,9.998e-05,2]
[348395109,1736503846935,-984.1,9.998e-05,2]
[348395110,1736503846944,-500.0,9.998e-05,2]
[348395111,1736503846953,-501.03925517,9.998e-05,2]
[348395112,1736503846962,-500.3946516,9.998e-05,2]
[348395113,1736503846971,-500.0,9.998e-05,2]
[348395114,1736503846980,-500.86520643,9.998e-05,2]
[348395115,1736503846989,-502.29574388,9.998e-05,2]
[348395116,1736503846998,-500.0,9.998e-05,2]
[348395117,1736503847008,-500.0,9.998e-05,2]
[348395118,1736503847018,-588.95,9.998e-05,2]
[348395119,1736503847027,-501.29124247,9.998e-05,2]
[348395120,1736503847035,-500.0,9.998e-05,2]
[348395121,1736503847044,-500.97956615,9.998e-05,2]
[348395122,1736503847053,-500.0,9.998e-05,2]
[348395123,1736503847062,-500.0,9.998e-05,2]
[348395124,1736503847071,-503.04905435,9.998e-05,2]
[348395125,1736503847079,-500.0,9.998e-05,2]
[348395126,1736503847088,-500.71437101,9.998e-05,2]
[348395127,1736503847096,-500.0,9.998e-05,2]
[348395128,1736503847105,-863.51,9.998e-05,2]
[348395129,1736503847114,-500.0,9.998e-05,2]
[348395130,1736503847122,-500.0,9.998e-05,2]
[348395131,1736503847131,-500.0,9.998e-05,2]
[348395132,1736503847140,-1065.16,9.998e-05,2]
[348395133,1736503847149,-705.16,9.998e-05,2]
[348395134,1736503847159,-500.0,9.998e-05,2]
[348395135,1736503847168,-500.0,9.998e-05,2]
[348395136,1736503847177,-513.91165762,9.998e-05,2]
[348395137,1736503847186,-501.41511313,9.998e-05,2]
[348395138,1736503847196,-502.15006709,9.998e-05,2]
[348395139,1736503847206,-500.0,9.998e-05,2]
[348395140,1736503847216,-581.23004753,9.998e-05,2]
[348395141,1736503847227,-500.0,9.998e-05,2]
[348395142,1736503847236,-501.81783673,9.998e-05,2]
[348395143,1736503847246,-500.0,9.998e-05,2]
[348395144,1736503847257,-500.0,9.998e-05,2]
[348395145,1736503847266,-500.0,9.998e-05,2]
[348395146,1736503847275,-500.0,9.998e-05,2]
[348395147,1736503847285,-500.0,9.998e-05,2]
[348395148,1736503847294,-500.0,9.998e-05,2]
[348395149,1736503847304,-500.0,9.998e-05,2]
[348395150,1736503847313,-500.0,9.998e-05,2]
[348395151,1736503847323,-500.0,9.998e-05,2]
[348395152,1736503847332,-500.0,9.998e-05,2]
[348395153,1736503847342,-500.0,9.998e-05,2]
[348395154,1736503847351,-500.0,9.998e-05,2]
[348395155,1736503847361,-500.0,9.998e-05,2]
[348395156,1736503847370,-503.23374115,9.998e-05,2]
[348395157,1736503847379,-500.0,9.998e-05,2]
[348395158,1736503847388,-150.0,9.998e-05,2]
[348395159,1736503847398,-3796.47,9.998e-05,2]
[348395160,1736503847407,-3896.0,9.998e-05,2]
[348395161,1736503847416,-1173.0,9.998e-05,2]
[348395162,1736503847426,-502.04790802,9.999e-05,2]
[348395163,1736503847435,-500.0,9.999e-05,2]
[348395164,1736503847445,-494.07727682,9.999e-05,2]
[348395165,1736503847454,-168.49089581,9.999e-05,2]
[348395166,1736503847464,-362.71843352,9.999e-05,2]
[348395167,1736503847473,-3793.0,9.999e-05,2]
[348395168,1736503847482,-500.0,9.999e-05,2]
[348395169,1736503847497,-500.0,9.999e-05,2]
[348395170,1736503847506,-500.0,9.999e-05,2]
[348395171,1736503847516,-500.0,9.999e-05,2]
[348395172,1736503847525,-500.0,9.999e-05,2]
[348395173,1736503847535,-500.0,9.999e-05,2]
[348395174,1736503847544,-500.0,9.999e-05,2]
[348395175,1736503847553,-500.0,9.999e-05,2]
[348395176,1736503847563,-500.0,9.999e-05,2]
[348395177,1736503847572,-500.0,9.999e-05,2]
[348395178,1736503847582,-500.0,9.999e-05,2]
[348395179,1736503847591,-500.0,9.999e-05,2]
[348395180,1736503847600,-500.0,9.999e-05,2]
[348395181,1736503847609,-500.0,9.999e-05,2]
[348395182,1736503847618,-500.0,9.999e-05,2]
[348395183,1736503847628,-500.0,9.999e-05,2]
[348395184,1736503847637,-612.33952226,9.999e-05,2]
[348395185,1736503847646,-500.0,9.999e-05,2]
[348395186,1736503847656,-500.0,9.999e-05,2]
[348395187,1736503847665,-411.86947311,9.999e-05,2]
[348395188,1736503847674,-1577.65,9.999e-05,2]
[348395189,1736503847686,-893.71,9.999e-05,2]
[348395190,1736503847697,-500.0,9.999e-05,2]
[348395191,1736503847707,-502.3181724,9.999e-05,2]
[348395192,1736503847716,-2441.68282008,9.999e-05,2]
[348395193,1736503847746,-646.86717992,9.999e-05,2]
[348395194,1736503847755,-2112.3,9.999e-05,2]
[348395195,1736503847766,-1444.05,9.999e-05,2]
[348395196,1736503847775,-364.88673653,9.999e-05,2]
[348395197,1736503847786,-516.12326347,9.999e-05,2]
[348395198,1736503847795,-523.46573746,9.999e-05,2]
[348395199,1736503847807,-823.25069751,9.999e-05,2]
[348395200,1736503847818,-379.40356503,9.999e-05,2]
[348395201,1736503847828,-997.18,9.999e-05,2]
[348395202,1736503847837,-761.6,9.999e-05,2]
[348395203,1736503847847,-1350.72,9.999e-05,2]
[348395204,1736503847856,-5878.53,9.999e-05,2]
[348395205,1736503847866,-5878.53,9.999e-05,2]
[348395206,1736503847875,-5878.53,9.999e-05,2]
[348395207,1736503847885,-5878.53,9.999e-05,2]
[348395208,1736503847894,-5878.53,9.999e-05,2]
[348395209,1736503847903,-5878.53,9.999e-05,2]
[348395210,1736503847912,-935.42,9.999e-05,2]
[348395211,1736503847922,-5878.53,9.999e-05,2]
[348395212,1736503847931,-5878.53,9.999e-05,2]
[348395213,1736503847941,-5878.53,9.999e-05,2]
[348395214,1736503847950,-5878.53,9.999e-05,2]
[348395215,1736503847960,-500.0,9.999e-05,2]
[348395216,1736503847969,-842.74,9.999e-05,2]
[348395217,1736503847979,-442.76300246,9.999e-05,2]
[348395218,1736503847989,-500.0,9.999e-05,2]
[348395219,1736503847999,-205.59955707,9.999e-05,2]
[348395220,1736503848009,-39566.43974269,0.0001,2]
[348395221,1736503848019,-331.57580513,0.0001,2]
[348395222,1736503848028,-4239.10284717,0.0001,2]
[348395223,1736503848037,-1761752.20616372,0.0001,2]
[348395224,1736503848047,-129433.44041701,0.0001,2]
[348395225,1736503848056,-980.5249,0.0001,2]
[348395226,1736503848066,-1032.10243188,0.0001,2]
[348395227,1736503848076,-185.65911356,0.0001,2]
[348395228,1736503848085,-206073.0,0.0001,2]
[348395229,1736503848094,-1000.0,0.0001,2]
[348395230,1736503848104,-500.0,0.0001,2]
[348395231,1736503848113,-277.44,0.0001,2]
[348395232,1736503848122,-160.78282822,0.0001,2]
[348395233,1736503848132,-3000.0,0.0001,2]
[348395234,1736503848141,-171.65252413,0.0001,2]
[348395235,1736503848151,-700.68383634,0.0001,2]
[348395236,1736503848160,-171.65252412,0.00010081,2]
[348395237,1736503848170,-250.0,0.000101,2]
[348395238,1736503848180,-250.0,0.000101,2]
[348395239,1736503848190,-250.0,0.000101,2]
[348395240,1736503848200,-250.0,0.000101,2]
[348395241,1736503848209,-250.0,0.000101,2]
[348395242,1736503848219,-250.0,0.000101,2]
[348395243,1736503848228,-250.0,0.000101,2]
[348395244,1736503848237,-250.0,0.000101,2]
[348395245,1736503848247,-250.0,0.000101,2]
[348395246,1736503848257,-250.0,0.000101,2]
[348395247,1736503848267,-250.0,0.000101,2]
[348395248,1736503848276,-250.0,0.000101,2]
[348395249,1736503848286,-250.0,0.000101,2]
[348395250,1736503848296,-500.0,0.00010136,2]
[348395251,1736503848306,-151.32,0.00010137,2]
[348395252,1736503848316,-663.47,0.00010137,2]
[348395253,1736503848325,-500.0,0.00010164,2]
[348395254,1736503848335,-171.65252412,0.00010172,2]
[348395255,1736503848344,-5113.43367934,0.00010233,4]
[348395256,1736503848352,-2000.0,0.00010239,2]
[348395257,1736503848361,-200.0,0.00010239,2]
[348395258,1736503848370,-200.0,0.00010239,2]
[348395259,1736503848379,-2000.0,0.00010239,2]
[348395260,1736503848389,-200.0,0.00010239,2]
[348395261,1736503848399,-1116.04235688,0.00010268,2]
[348395262,1736503848408,-569.37,0.00010268,2]
[348395263,1736503848418,-1818.53,0.00010268,2]
[348395264,1736503848428,-861.72,0.00010268,2]
[348395265,1736503848438,-716.26,0.00010268,2]
[348395266,1736503848448,-917.19,0.00010268,2]
[348395267,1736503848457,-1086.31,0.00010268,2]
[348395268,1736503848468,-1000.0,0.00010268,2]
[348395269,1736503848479,-833.72,0.00010268,2]
[348395270,1736503848489,-500.0,0.00010268,2]
[348395271,1736503848500,-500.0,0.0001027,2]
[348395272,1736503848510,-5878.53,0.0001027,2]
[348395273,1736503848519,-919.36,0.00010271,2]
[348395274,1736503848529,-500.0,0.00010271,2]
[348395275,1736503848539,-999.91,0.00010271,2]
[348395276,1736503848548,-762.78,0.00010271,2]
[348395277,1736503848558,-1822.9,0.00010271,2]
[348395278,1736503848567,-672.41,0.00010271,2]
[348395279,1736503848577,-668.34,0.00010271,2]
[348395280,1736503848586,-500.0,0.00010271,2]
[348395281,1736503848596,-1220.62,0.00010271,2]
[348395282,1736503848606,-5801.0,0.00010271,2]
[348395283,1736503848615,-543.85,0.00010271,2]
[348395284,1736503848624,-668.7,0.00010271,2]
[348395285,1736503848634,-629.72,0.00010271,2]
[348395286,1736503848644,-833.02,0.00010271,2]
[348395287,1736503848653,-993.98,0.00010271,2]
[348395288,1736503848662,-629.74,0.00010271,2]
[348395289,1736503848672,-1024.56,0.00010271,2]
[348395290,1736503848682,-766.63,0.00010271,2]
[348395291,1736503848693,-1583.54,0.00010271,2]
[348395292,1736503848703,-1223.29,0.00010271,2]
[348395293,1736503848712,-883.05,0.00010271,2]
[348395294,1736503848721,-2478.93,0.00010271,2]
[348395295,1736503848732,-1103.68,0.00010271,2]
[348395296,1736503848741,-860.73,0.00010271,2]
[348395297,1736503848751,-624.36,0.00010271,2]
[348395298,1736503848761,-1171.94,0.00010271,2]
[348395299,1736503848771,-673.41,0.00010271,2]
[348395300,1736503848781,-1534.27,0.00010271,2]
[348395301,1736503848791,-1221.89,0.00010271,2]
[348395302,1736503848801,-783.34,0.00010271,2]
[348395303,1736503848812,-1198.02,0.00010271,2]
[348395304,1736503848821,-697.47,0.00010271,2]
[348395305,1736503848831,-1786.26,0.00010271,2]
[348395306,1736503848840,-548.35,0.00010271,2]
[348395307,1736503848849,-1152.07,0.00010271,2]
[348395308,1736503848859,-557.85,0.00010271,2]
[348395309,1736503848868,-1938.4,0.00010271,2]
[348395310,1736503848878,-760.64,0.00010271,2]
[348395311,1736503848887,-500.0,0.00010271,2]
[348395312,1736503848898,-2588.68,0.00010271,2]
[348395313,1736503848907,-704.25,0.00010271,2]
[348395314,1736503848917,-575.58,0.00010271,2]
[348395315,1736503848926,-628.69,0.00010271,2]
[348395316,1736503848936,-500.0,0.00010271,2]
[348395317,1736503848945,-4445.51,0.00010271,2]
[348395318,1736503848954,-500.0,0.00010271,2]
[348395319,1736503848964,-930.04,0.00010271,2]
[348395320,1736503848973,-775.38,0.00010271,2]
[348395321,1736503848982,-500.0,0.00010272,2]
[348395322,1736503848992,-500.0,0.00010272,2]
[348395323,1736503849002,-500.0,0.00010272,2]
[348395324,1736503849012,-514.9,0.00010272,2]
[348395325,1736503849021,-500.0,0.00010272,2]
[348395326,1736503849031,-258.127017,0.00010272,2]
[348395327,1736503849041,-500.0,0.00010272,2]
[348395328,1736503849050,-500.0,0.00010272,2]
[348395329,1736503849060,-500.0,0.00010272,2]
[348395330,1736503849069,-278.904117,0.00010272,2]
[348395331,1736503849079,-500.0,0.00010272,2]
[348395332,1736503849088,-500.0,0.00010272,2]
[348395333,1736503849098,-500.0,0.00010272,2]
[348395334,1736503849107,-497.8,0.00010272,2]
[348395335,1736503849117,-390.87663059,0.00010272,2]
[348395336,1736503849127,-552.23,0.00010272,2]
[348395337,1736503849136,-500.0,0.00010272,2]
[348395338,1736503849145,-500.0,0.00010272,2]
[348395339,1736503849155,-500.0,0.00010272,2]
[348395340,1736503849165,-500.0,0.00010272,2]
[348395341,1736503849174,-500.0,0.00010272,2]
[348395342,1736503849184,-500.0,0.00010272,2]
[348395343,1736503849194,-500.0,0.00010272,2]
[348395344,1736503849203,-500.0,0.00010272,2]
[348395345,1736503849213,-221.40352652,0.00010272,2]
[348395346,1736503849223,-558.93,0.00010272,2]
[348395347,1736503849232,-500.0,0.00010272,2]
[348395348,1736503849243,-500.0,0.00010272,2]
[348395349,1736503849255,-500.0,0.00010272,2]
[348395350,1736503849265,-599.53,0.00010272,2]
[348395351,1736503849485,-500.0,0.00010272,2]
[348395352,1736503849495,-500.0,0.00010272,2]
[348395353,1736503849505,-563.24,0.00010272,2]
[348395354,1736503849515,-190.43478459,0.00010272,2]
[348395355,1736503849524,-719.57,0.00010272,2]
[348395356,1736503849533,-500.0,0.00010272,2]
[348395357,1736503849542,-500.0,0.00010272,2]
[348395358,1736503849552,-500.0,0.00010272,2]
[348395359,1736503849562,-500.0,0.00010272,2]
[348395360,1736503849571,-619.56,0.00010272,2]
[348395361,1736503849584,-500.0,0.00010272,2]
[348395362,1736503849593,-500.0,0.00010272,2]
[348395363,1736503849603,-500.0,0.00010272,2]
[348395364,1736503849615,-500.0,0.00010272,2]
[348395365,1736503849627,-500.0,0.00010272,2]
[348395366,1736503849638,-500.0,0.00010272,2]
[348395367,1736503849651,-606.77,0.00010272,2]
[348395368,1736503849662,-500.0,0.00010272,2]
[348395369,1736503849673,-500.0,0.00010272,2]
[348395370,1736503849683,-500.0,0.00010272,2]
[348395371,1736503849693,-500.0,0.00010272,2]
[348395372,1736503849702,-500.0,0.00010272,2]
[348395373,1736503849711,-467.18105834,0.00010272,2]
[348395374,1736503849720,-500.0,0.00010272,2]
[348395375,1736503849730,-500.0,0.00010272,2]
[348395376,1736503849740,-598.31899356,0.00010272,2]
[348395377,1736503849750,-500.0,0.00010272,2]
[348395378,1736503849759,-500.0,0.00010272,2]
[348395379,1736503849769,-500.0,0.00010272,2]
[348395380,1736503849779,-500.0,0.00010272,2]
[348395381,1736503849788,-250.18527059,0.00010272,2]
[348395382,1736503849799,-569.35,0.00010272,2]
[348395383,1736503849808,-500.0,0.00010272,2]
[348395384,1736503849817,-500.0,0.00010272,2]
[348395385,1736503849826,-500.0,0.00010272,2]
[348395386,1736503849838,-500.0,0.00010272,2]
[348395387,1736503849849,-500.0,0.00010272,2]
[348395388,1736503849858,-500.0,0.00010272,2]
[348395389,1736503849869,-500.0,0.00010272,2]
[348395390,1736503849879,-500.0,0.00010272,2]
[348395391,1736503849889,-500.0,0.00010272,2]
[348395392,1736503849898,-181.94,0.00010272,2]
[348395393,1736503849908,-500.0,0.00010272,2]
[348395394,1736503849919,-435.0634298,0.00010272,2]
[348395395,1736503849928,-500.0,0.00010272,2]
[348395396,1736503849937,-602.95,0.00010272,2]
[348395397,1736503849948,-500.0,0.00010272,2]
[348395398,1736503849959,-500.0,0.00010272,2]
[348395399,1736503849969,-500.0,0.00010272,2]
[348395400,1736503849978,-500.0,0.00010272,2]
[348395401,1736503849987,-561.48,0.00010272,2]
[348395402,1736503849999,-2738.48,0.00010272,2]
[348395403,1736503850009,-581.2,0.00010272,2]
[348395404,1736503850019,-500.0,0.00010272,2]
[348395405,1736503850028,-646.13,0.00010272,2]
[348395406,1736503850038,-500.0,0.00010272,2]
[348395407,1736503850048,-500.0,0.00010272,2]
[348395408,1736503850059,-500.0,0.00010272,2]
[348395409,1736503850069,-500.0,0.00010272,2]
[348395410,1736503850079,-500.0,0.00010272,2]
[348395411,1736503850090,-500.0,0.00010272,2]
[348395412,1736503850099,-516.0,0.00010272,2]
[348395413,1736503850108,-500.0,0.00010272,2]
[348395414,1736503850118,-500.0,0.00010272,2]
[348395415,1736503850127,-666.5,0.00010272,2]
[348395416,1736503850137,-500.0,0.00010272,2]
[348395417,1736503850147,-513.91,0.00010272,2]
[348395418,1736503850157,-646.26,0.00010272,2]
[348395419,1736503850166,-500.0,0.00010272,2]
[348395420,1736503850176,-712.98,0.00010272,2]
[348395421,1736503850185,-500.0,0.00010272,2]
[348395422,1736503850195,-500.0,0.00010272,2]
[348395423,1736503850205,-635.94,0.00010272,2]
[348395424,1736503850215,-386.28697225,0.00010272,2]
[348395425,1736503850224,-500.0,0.00010272,2]
[348395426,1736503850234,-618.74,0.00010272,2]
[348395427,1736503850244,-573.6,0.00010272,2]
[348395428,1736503850254,-605.97,0.00010272,2]
[348395429,1736503850263,-500.0,0.00010272,2]
[348395430,1736503850273,-2186.24,0.00010272,2]
[348395431,1736503850283,-672.67,0.00010272,2]
[348395432,1736503850292,-503.53,0.00010272,2]
[348395433,1736503850302,-500.0,0.00010272,2]
[348395434,1736503850312,-500.0,0.00010272,2]
[348395435,1736503850321,-933.18,0.00010272,2]
[348395436,1736503850330,-500.0,0.00010272,2]
[348395437,1736503850339,-646.4,0.00010272,2]
[348395438,1736503850348,-500.0,0.00010272,2]
[348395439,1736503850358,-1637.54,0.00010272,2]
[348395440,1736503850367,-601.64,0.00010272,2]
[348395441,1736503850376,-943.67,0.00010272,2]
[348395442,1736503850386,-500.0,0.00010272,2]
[348395443,1736503850395,-500.0,0.00010272,2]
[348395444,1736503850406,-500.0,0.00010272,2]
[348395445,1736503850418,-549.59,0.00010272,2]
[348395446,1736503850428,-500.0,0.00010272,2]
[348395447,1736503850437,-1146.17,0.00010272,2]
[348395448,1736503850446,-564.61,0.00010272,2]
[348395449,1736503850456,-550.62,0.00010272,2]
[348395450,1736503850466,-500.0,0.00010272,2]
[348395451,1736503850477,-775.33,0.00010272,2]
[348395452,1736503850487,-671.45,0.00010272,2]
[348395453,1736503850497,-500.0,0.00010272,2]
[348395454,1736503850505,-500.0,0.00010272,2]
[348395455,1736503850514,-597.41,0.00010272,2]
[348395456,1736503850526,-500.0,0.00010272,2]
[348395457,1736503850536,-550.56,0.00010272,2]
[348395458,1736503850546,-500.0,0.00010272,2]
[348395459,1736503850555,-500.0,0.00010272,2]
[348395460,1736503850565,-742.93,0.00010272,2]
[348395461,1736503850574,-578.9,0.00010272,2]
[348395462,1736503850585,-500.0,0.00010272,2]
[348395463,1736503850596,-659.94,0.00010272,2]
[348395464,1736503850606,-500.0,0.00010272,2]
[348395465,1736503850617,-511.9536194,0.00010272,2]
[348395466,1736503850628,-853.46,0.00010272,2]
[348395467,1736503850638,-500.0,0.00010272,2]
[348395468,1736503850646,-3040.66,0.00010272,2]
[348395469,1736503850656,-717.58,0.00010272,2]
[348395470,1736503850666,-1758.78,0.00010272,2]
[348395471,1736503850677,-812.97,0.00010272,2]
[348395472,1736503850688,-500.0,0.00010272,2]
[348395473,1736503850698,-500.0,0.00010272,2]
[348395474,1736503850707,-500.0,0.00010272,2]
[348395475,1736503850717,-2207.01,0.00010272,2]
[348395476,1736503850726,-621.49,0.00010272,2]
[348395477,1736503850736,-500.0,0.00010272,2]
[348395478,1736503850744,-500.0,0.00010272,2]
[348395479,1736503850754,-500.0,0.00010272,2]
[348395480,1736503850764,-2638.96,0.00010272,2]
[348395481,1736503850773,-1514.35,0.00010272,2]
[348395482,1736503850782,-500.0,0.00010272,2]
[348395483,1736503850791,-500.0,0.00010272,2]
[348395484,1736503850801,-842.78,0.00010272,2]
[348395485,1736503850810,-1081.76,0.00010272,2]
[348395486,1736503850819,-771.76,0.00010272,2]
[348395487,1736503850829,-668.66,0.00010272,2]
[348395488,1736503850838,-640.27,0.00010272,2]
[348395489,1736503850847,-500.0,0.00010272,2]
[348395490,1736503850856,-636.47,0.00010272,2]
[348395491,1736503850865,-2557.88,0.00010272,2]
[348395492,1736503850875,-692.35,0.00010272,2]
[348395493,1736503850884,-500.0,0.00010272,2]
[348395494,1736503850893,-500.0,0.00010272,2]
[348395495,1736503850902,-540.02,0.00010272,2]
[348395496,1736503850911,-524.46,0.00010272,2]
[348395497,1736503850919,-500.0,0.00010272,2]
[348395498,1736503850928,-500.0,0.00010272,2]
[348395499,1736503850938,-716.65,0.00010272,2]
[348395500,1736503850947,-1145.78,0.00010272,2]
[348395501,1736503850957,-584.46,0.00010272,2]
[348395502,1736503850966,-381.78,0.00010272,2]
[348395503,1736503850975,-500.0,0.00010272,2]
[348395504,1736503850984,-507.58,0.00010272,2]
[348395505,1736503850994,-500.90416506,0.00010272,2]
[348395506,1736503851003,-500.65,0.00010272,2]
[348395507,1736503851012,-500.0,0.00010272,2]
[348395508,1736503851022,-500.0,0.00010272,2]
[348395509,1736503851031,-592.12,0.00010272,2]
[348395510,1736503851040,-680.86,0.00010272,2]
[348395511,1736503851049,-500.0,0.00010272,2]
[348395512,1736503851058,-2244.82,0.00010272,2]
[348395513,1736503851067,-500.0,0.00010272,2]
[348395514,1736503851076,-704.37,0.00010272,2]
[348395515,1736503851085,-502.67,0.00010272,2]
[348395516,1736503851094,-500.0,0.00010272,2]
[348395517,1736503851103,-512.73759222,0.00010272,2]
[348395518,1736503851112,-792.57,0.00010272,2]
[348395519,1736503851122,-500.0,0.00010272,2]
[348395520,1736503851131,-1095.62,0.00010272,2]
[348395521,1736503851140,-500.0,0.00010272,2]
[348395522,1736503851148,-502.21321474,0.00010272,2]
[348395523,1736503851158,-500.0,0.00010272,2]
[348395524,1736503851167,-700.07,0.00010272,2]
[348395525,1736503851176,-500.0,0.00010272,2]
[348395526,1736503851186,-500.0,0.00010272,2]
[348395527,1736503851195,-500.0,0.00010272,2]
[348395528,1736503851204,-500.0,0.00010272,2]
[348395529,1736503851213,-582.06,0.00010272,2]
[348395530,1736503851223,-500.0,0.00010272,2]
[348395531,1736503851232,-678.89,0.00010272,2]
[348395532,1736503851241,-634.08,0.00010272,2]
[348395533,1736503851251,-500.0,0.00010272,2]
[348395534,1736503851260,-500.0,0.00010272,2]
[348395535,1736503851269,-500.0,0.00010272,2]
[348395536,1736503851279,-618.45,0.00010272,2]
[348395537,1736503851288,-787.52,0.00010272,2]
[348395538,1736503851297,-2496.96,0.00010272,2]
[348395539,1736503851306,-500.0,0.00010272,2]
[348395540,1736503851315,-500.0,0.00010272,2]
[348395541,1736503851324,-500.0,0.00010272,2]
[348395542,1736503851333,-984.1,0.00010272,2]
[348395543,1736503851343,-500.0,0.00010272,2]